fUST/lending_fUST_20241214
["ID","MTS","AMOUNT","RATE_DAILY","PERIOD"]
[345337567,1734160246096,-505.02391726,0.00027397,7]
[345337568,1734160246105,-500.0,0.00027397,7]
[345337569,1734160246115,-500.0,0.00027397,7]
[345337570,1734160246124,-187.0169918,0.00027397,7]
[345337571,1734160246134,-500.0,0.00027397,7]
[345337572,1734160246144,-500.0,0.00027397,7]
[345337573,1734160246158,-500.0,0.00027397,7]
[345337574,1734160246167,-500.0,0.00027397,7]
[345337575,1734160246176,-1111.72,0.00027397,7]
[345337576,1734160246187,-500.0,0.00027397,7]
[345337577,1734160246198,-500.0,0.00027397,7]
[345337578,1734160246207,-500.0,0.00027397,7]
[345337579,1734160246216,-500.0,0.00027397,7]
[345337580,1734160246227,-500.0,0.00027397,7]
[345337582,1734160246237,-629.24,0.00027397,7]
[345337584,1734160246246,-501.70440013,0.00027397,7]
[345337585,1734160246256,-260.84088177,0.00027397,7]
[345337586,1734160246265,-500.0,0.00027397,7]
[345337587,1734160246274,-565.5,0.00027397,7]
[345337588,1734160246284,-500.0,0.00027397,7]
[345337589,1734160246293,-500.0,0.00027397,7]
[345337590,1734160246302,-1386.54,0.00027397,7]
[345337591,1734160246312,-506.09,0.00027397,7]
[345337592,1734160246321,-1124.97,0.00027397,7]
[345337593,1734160246330,-500.0,0.00027397,7]
[345337594,1734160246340,-500.0,0.00027397,7]
[345337595,1734160246349,-427.6502116,0.00027397,7]
[345337596,1734160246358,-500.0,0.00027397,7]
[345337597,1734160246368,-500.0,0.00027397,7]
[345337598,1734160246377,-500.0,0.00027397,7]
[345337599,1734160246387,-500.0,0.00027397,7]
[345337600,1734160246396,-912.18,0.00027397,7]
[345337601,1734160246405,-500.0,0.00027397,7]
[345337602,1734160246415,-665.69,0.00027397,7]
[345337603,1734160246424,-249.3955714,0.00027397,7]
[345337604,1734160246434,-500.0,0.00027397,7]
[345337605,1734160246530,-500.0,0.00027397,7]
[345337606,1734160246540,-500.0,0.00027397,7]
[345337607,1734160246549,-500.0,0.00027397,7]
[345337608,1734160246559,-500.0,0.00027397,7]
[345337609,1734160246568,-500.0,0.00027397,7]
[345337610,1734160246578,-4949.7,0.00027397,7]
[345337611,1734160246587,-500.0,0.00027397,7]
[345337612,1734160246596,-649.22099869,0.00027397,7]
[345337613,1734160246606,-1256.84,0.00027397,7]
[345337614,1734160246615,-500.0,0.00027397,7]
[345337615,1734160246625,-500.0,0.00027397,7]
[345337616,1734160246635,-500.0,0.00027397,7]
[345337617,1734160246644,-995.39,0.00027397,7]
[345337618,1734160246654,-805.1,0.00027397,7]
[345337619,1734160246663,-500.0,0.00027397,7]
[345337620,1734160246671,-500.0,0.00027397,7]
[345337621,1734160246681,-871.29,0.00027397,7]
[345337622,1734160246691,-1280.7,0.00027397,7]
[345337623,1734160246700,-500.0,0.00027397,7]
[345337624,1734160246709,-500.0,0.00027397,7]
[345337625,1734160246719,-13675.67,0.00027397,7]
[345337626,1734160246727,-500.0,0.00027397,7]
[345337627,1734160246737,-1277.33,0.00027397,7]
[345337628,1734160246747,-500.0,0.00027397,7]
[345337629,1734160246756,-1956.62,0.00027397,7]
[345337630,1734160246765,-504.7052757,0.00027397,7]
[345337631,1734160246775,-2298.6,0.00027397,7]
[345337632,1734160246784,-741.9,0.00027397,7]
[345337633,1734160246793,-500.0,0.00027397,7]
[345337634,1734160246802,-500.0,0.00027397,7]
[345337635,1734160246812,-500.0,0.00027397,7]
[345337636,1734160246821,-500.0,0.00027397,7]
[345337637,1734160246830,-500.0,0.00027397,7]
[345337638,1734160246839,-500.0,0.00027397,7]
[345337639,1734160246849,-10312.08,0.00027397,7]
[345337640,1734160246858,-1076.48,0.00027397,7]
[345337641,1734160246867,-500.0,0.00027397,7]
[345337642,1734160246877,-500.0,0.00027397,7]
[345337643,1734160246886,-687.28,0.00027397,7]
[345337644,1734160246895,-5762.06,0.00027397,5]
[345337645,1734160246904,-500.0,0.00027397,7]
[345337646,1734160246914,-553.07718341,0.00027397,7]
[345337647,1734160246923,-909.93,0.00027397,7]
[345337648,1734160246933,-538.06483645,0.00027397,7]
[345337649,1734160246943,-614.01282439,0.00027397,7]
[345337650,1734160246952,-695.42,0.00027397,7]
[345337651,1734160246961,-500.0,0.00027397,7]
[345337652,1734160246971,-595.78,0.00027397,7]
[345337653,1734160246981,-962.18,0.00027397,7]
[345337654,1734160246991,-190.99726082,0.00027397,2]
[345337655,1734160247000,-2699.66,0.000274,2]
[345337656,1734160247011,-3211.891,0.00027424,2]
[345337657,1734160247021,-500.0,0.00027424,2]
[345337658,1734160247031,-824.18462808,0.00027549,2]
[345337659,1734160247040,-1002.777011,0.000276,2]
[345337660,1734160247051,-500.0,0.00027671,7]
[345337661,1734160247061,-500.0,0.00027671,7]
[345337662,1734160247071,-500.0,0.00027671,7]
[345337663,1734160247081,-500.0,0.00027671,7]
[345337664,1734160247090,-500.0,0.00027671,7]
[345337665,1734160247100,-500.0,0.00027671,7]
[345337666,1734160247111,-500.0,0.00027671,7]
[345337667,1734160247122,-500.0,0.00027671,2]
[345337668,1734160247131,-500.0,0.00027671,7]
[345337669,1734160247140,-500.0,0.00027671,7]
[345337670,1734160247155,-500.0,0.00027671,7]
[345337671,1734160247165,-500.0,0.00027671,7]
[345337672,1734160247175,-500.0,0.00027671,7]
[345337673,1734160247185,-500.0,0.00027671,7]
[345337674,1734160247195,-523.41178621,0.00027671,7]
[345337675,1734160247204,-500.0,0.00027671,7]
[345337676,1734160247214,-500.0,0.00027671,7]
[345337677,1734160247224,-500.0,0.00027671,7]
[345337678,1734160247234,-324.61947672,0.00027671,7]
[345337679,1734160247243,-500.0,0.00027671,7]
[345337680,1734160247252,-550.65854837,0.00027671,7]
[345337681,1734160247262,-701.09,0.00027671,7]
[345337682,1734160247271,-500.0,0.00027671,7]
[345337683,1734160247280,-1000.0,0.00027671,7]
[345337684,1734160247290,-500.0,0.00027671,7]
[345337685,1734160247299,-404.73948365,0.00027671,7]
[345337686,1734160247309,-500.0,0.00027671,2]
[345337687,1734160247319,-500.0,0.00027671,7]
[345337688,1734160247328,-500.0,0.00027671,7]
[345337689,1734160247338,-500.0,0.00027671,7]
[345337690,1734160247347,-718.73,0.00027671,7]
[345337691,1734160247356,-500.0,0.00027671,7]
[345337692,1734160247366,-500.0,0.00027671,7]
[345337693,1734160247375,-500.0,0.00027671,7]
[345337694,1734160247385,-500.0,0.00027671,7]
[345337695,1734160247394,-591.49,0.00027671,7]
[345337696,1734160247403,-541.62316358,0.00027671,7]
[345337697,1734160247413,-500.0,0.00027671,7]
[345337698,1734160247422,-500.0,0.00027671,7]
[345337699,1734160247431,-500.0,0.00027671,7]
[345337700,1734160247440,-1338.6,0.00027671,7]
[345337701,1734160247450,-205.36,0.00027671,7]
[345337702,1734160247459,-1000.0,0.00027671,2]
[345337703,1734160247468,-500.0,0.00027671,7]
[345337704,1734160247477,-500.0,0.00027671,7]
[345337705,1734160247487,-500.0,0.00027671,7]
[345337706,1734160247496,-1391.48,0.00027671,7]
[345337707,1734160247506,-500.0,0.00027671,7]
[345337708,1734160247515,-552.13,0.00027671,7]
[345337709,1734160247525,-500.0,0.00027671,7]
[345337710,1734160247535,-500.0,0.00027671,7]
[345337711,1734160247544,-603.19,0.00027671,7]
[345337712,1734160247554,-1301.52,0.00027671,7]
[345337713,1734160247563,-1000.0,0.00027671,2]
[345337714,1734160247574,-500.0,0.00027671,7]
[345337715,1734160247583,-749.59,0.00027671,7]
[345337716,1734160247593,-348.37237108,0.00027671,7]
[345337717,1734160247602,-500.0,0.00027671,7]
[345337718,1734160247612,-500.0,0.00027671,7]
[345337719,1734160247621,-500.0,0.00027671,7]
[345337720,1734160247631,-861.2,0.00027671,7]
[345337721,1734160247640,-500.0,0.00027671,7]
[345337722,1734160247650,-500.0,0.00027671,7]
[345337723,1734160247659,-500.0,0.00027671,7]
[345337724,1734160247669,-965.22,0.00027671,7]
[345337725,1734160247678,-500.0,0.00027671,7]
[345337726,1734160247687,-319.42058681,0.00027671,7]
[345337727,1734160247698,-500.0,0.00027671,7]
[345337728,1734160247707,-500.0,0.00027671,7]
[345337729,1734160247717,-500.0,0.00027671,7]
[345337730,1734160247726,-500.0,0.00027671,7]
[345337731,1734160247735,-500.0,0.00027671,7]
[345337732,1734160247746,-570.098784,0.00027671,7]
[345337733,1734160247755,-500.0,0.00027671,7]
[345337734,1734160247765,-500.0,0.00027671,7]
[345337735,1734160247775,-370.38171001,0.00027671,7]
[345337736,1734160247784,-1126.57,0.00027671,7]
[345337737,1734160247793,-500.0,0.00027671,7]
[345337738,1734160247803,-946.51,0.00027671,7]
[345337739,1734160247812,-500.0,0.00027671,2]
[345337740,1734160247822,-500.0,0.00027671,7]
[345337741,1734160247830,-500.0,0.00027671,7]
[345337742,1734160247840,-500.0,0.00027671,7]
[345337743,1734160247849,-507.29630478,0.00027671,7]
[345337744,1734160247858,-500.0,0.00027671,7]
[345337745,1734160247868,-500.0,0.00027671,7]
[345337746,1734160247877,-500.0,0.00027671,7]
[345337747,1734160247886,-500.0,0.00027671,7]
[345337748,1734160247896,-500.0,0.00027671,7]
[345337749,1734160247905,-244.8930102,0.00027671,2]
[345337750,1734160247915,-500.0,0.00027671,7]
[345337751,1734160247924,-500.0,0.00027671,7]
[345337752,1734160247934,-500.0,0.00027671,7]
[345337753,1734160247944,-396.75224186,0.00027671,7]
[345337754,1734160247953,-500.0,0.00027671,7]
[345337755,1734160247962,-500.0,0.00027671,2]
[345337756,1734160247971,-500.0,0.00027671,7]
[345337757,1734160247984,-502.30725241,0.00027671,7]
[345337758,1734160247992,-520.51,0.00027671,7]
[345337759,1734160248002,-674.85,0.00027671,7]
[345337760,1734160248011,-302.71520537,0.00027671,7]
[345337761,1734160248020,-340.79416499,0.00027671,7]
[345337762,1734160248030,-500.0,0.00027671,7]
[345337763,1734160248039,-500.0,0.00027671,7]
[345337764,1734160248049,-500.0,0.00027671,7]
[345337765,1734160248059,-500.0,0.00027671,7]
[345337766,1734160248068,-500.0,0.00027671,7]
[345337767,1734160248078,-2574.58,0.00027671,7]
[345337768,1734160248087,-1343.49,0.00027671,7]
[345337769,1734160248097,-500.0,0.00027671,7]
[345337770,1734160248106,-1564.63,0.00027671,7]
[345337771,1734160248115,-500.0,0.00027671,7]
[345337772,1734160248125,-500.0,0.00027671,7]
[345337773,1734160248134,-684.01,0.00027671,7]
[345337774,1734160248144,-2192.9,0.00027671,7]
[345337775,1734160248157,-500.0,0.00027671,7]
[345337776,1734160248166,-500.0,0.00027671,7]
[345337777,1734160248176,-500.0,0.00027671,7]
[345337778,1734160248186,-502.99523799,0.00027671,7]
[345337779,1734160248198,-494.46628609,0.00027671,7]
[345337780,1734160248209,-1111.72,0.00027671,7]
[345337781,1734160248219,-500.0,0.00027671,7]
[345337782,1734160248231,-500.0,0.00027671,7]
[345337783,1734160248240,-500.0,0.00027671,7]
[345337784,1734160248249,-500.0,0.00027671,7]
[345337785,1734160248259,-629.24,0.00027671,7]
[345337786,1734160248269,-500.0,0.00027671,7]
[345337787,1734160248278,-565.5,0.00027671,7]
[345337788,1734160248288,-597.94534574,0.00027671,7]
[345337789,1734160248297,-393.93037498,0.00027671,7]
[345337790,1734160248307,-1386.54,0.00027671,7]
[345337791,1734160248317,-506.09,0.00027671,7]
[345337792,1734160248327,-1124.97,0.00027671,7]
[345337793,1734160248337,-500.0,0.00027671,7]
[345337794,1734160248347,-500.0,0.00027671,7]
[345337795,1734160248358,-500.0,0.00027671,7]
[345337796,1734160248368,-500.0,0.00027671,7]
[345337797,1734160248378,-500.0,0.00027671,7]
[345337798,1734160248388,-500.0,0.00027671,7]
[345337799,1734160248398,-912.18,0.00027671,7]
[345337800,1734160248408,-500.0,0.00027671,7]
[345337801,1734160248417,-665.69,0.00027671,7]
[345337802,1734160248427,-624.16598017,0.00027671,7]
[345337803,1734160248436,-500.0,0.00027671,7]
[345337804,1734160248450,-500.0,0.00027671,7]
[345337805,1734160248460,-500.0,0.00027671,7]
[345337806,1734160248557,-500.0,0.00027671,7]
[345337807,1734160248567,-4949.7,0.00027671,7]
[345337808,1734160248577,-500.0,0.00027671,7]
[345337809,1734160248587,-1256.84,0.00027671,7]
[345337810,1734160248597,-500.0,0.00027671,7]
[345337811,1734160248607,-500.0,0.00027671,7]
[345337812,1734160248617,-500.0,0.00027671,7]
[345337813,1734160248626,-995.39,0.00027671,7]
[345337814,1734160248636,-805.1,0.00027671,7]
[345337815,1734160248645,-500.0,0.00027671,7]
[345337816,1734160248654,-532.31897288,0.00027671,7]
[345337817,1734160248664,-871.29,0.00027671,7]
[345337818,1734160248673,-1280.7,0.00027671,7]
[345337819,1734160248683,-500.0,0.00027671,7]
[345337820,1734160248692,-500.0,0.00027671,7]
[345337821,1734160248702,-13675.67,0.00027671,7]
[345337822,1734160248712,-500.0,0.00027671,7]
[345337823,1734160248722,-1277.33,0.00027671,7]
[345337824,1734160248731,-500.0,0.00027671,7]
[345337825,1734160248740,-1956.62,0.00027671,7]
[345337826,1734160248750,-2298.6,0.00027671,7]
[345337827,1734160248758,-741.9,0.00027671,7]
[345337828,1734160248767,-500.0,0.00027671,7]
[345337829,1734160248776,-500.0,0.00027671,7]
[345337830,1734160248786,-500.0,0.00027671,7]
[345337831,1734160248796,-527.23246982,0.00027671,7]
[345337832,1734160248805,-500.0,0.00027671,7]
[345337833,1734160248814,-10312.08,0.00027671,7]
[345337834,1734160248825,-1076.48,0.00027671,7]
[345337835,1734160248834,-500.0,0.00027671,7]
[345337836,1734160248844,-687.28,0.00027671,7]
[345337837,1734160248853,-5762.06,0.00027671,5]
[345337838,1734160248863,-500.0,0.00027671,7]
[345337839,1734160248872,-909.93,0.00027671,7]
[345337840,1734160248881,-695.42,0.00027671,7]
[345337841,1734160248890,-500.0,0.00027671,7]
[345337842,1734160248899,-595.78,0.00027671,7]
[345337843,1734160248909,-962.18,0.00027671,7]
[345337844,1734160248918,-183.491893,0.00027671,2]
[345337845,1734160248927,-183.491893,0.00027671,120]
[345337846,1734160248937,-151.0,0.00027678,6]
[345337847,1734160248947,-467.987,0.00027803,15]
[345337848,1734160248956,-151.0,0.00027839,6]
[345337849,1734160248965,-1000.0,0.00027921,5]
[345337850,1734160248975,-500.0,0.00027945,7]
[345337851,1734160248984,-504.48880652,0.00027945,7]
[345337852,1734160248994,-500.0,0.00027945,7]
[345337853,1734160249003,-500.0,0.00027945,7]
[345337854,1734160249012,-500.0,0.00027945,7]
[345337855,1734160249021,-500.0,0.00027945,7]
[345337856,1734160249031,-500.0,0.00027945,7]
[345337857,1734160249040,-500.0,0.00027945,2]
[345337858,1734160249049,-500.0,0.00027945,7]
[345337859,1734160249059,-500.0,0.00027945,7]
[345337860,1734160249068,-500.0,0.00027945,7]
[345337861,1734160249078,-500.0,0.00027945,7]
[345337862,1734160249087,-500.0,0.00027945,7]
[345337863,1734160249097,-500.0,0.00027945,7]
[345337864,1734160249107,-500.0,0.00027945,7]
[345337865,1734160249116,-500.0,0.00027945,7]
[345337866,1734160249126,-500.0,0.00027945,7]
[345337867,1734160249135,-500.0,0.00027945,7]
[345337868,1734160249145,-701.09,0.00027945,7]
[345337869,1734160249158,-500.0,0.00027945,7]
[345337870,1734160249167,-1000.0,0.00027945,7]
[345337871,1734160249176,-500.0,0.00027945,7]
[345337872,1734160249186,-500.0,0.00027945,2]
[345337873,1734160249197,-629.45454831,0.00027945,7]
[345337874,1734160249207,-457.81106463,0.00027945,7]
[345337875,1734160249216,-500.0,0.00027945,7]
[345337876,1734160249226,-718.73,0.00027945,7]
[345337877,1734160249235,-500.0,0.00027945,7]
[345337878,1734160249244,-500.0,0.00027945,7]
[345337879,1734160249254,-500.0,0.00027945,7]
[345337880,1734160249263,-500.0,0.00027945,7]
[345337881,1734160249272,-591.49,0.00027945,7]
[345337882,1734160249282,-500.0,0.00027945,7]
[345337883,1734160249291,-500.0,0.00027945,7]
[345337884,1734160249301,-500.0,0.00027945,7]
[345337885,1734160249310,-1338.6,0.00027945,7]
[345337886,1734160249319,-205.36,0.00027945,7]
[345337887,1734160249329,-1000.0,0.00027945,2]
[345337888,1734160249338,-500.0,0.00027945,7]
[345337889,1734160249348,-563.17237419,0.00027945,7]
[345337890,1734160249357,-500.0,0.00027945,7]
[345337891,1734160249367,-1391.48,0.00027945,7]
[345337892,1734160249376,-470.0,0.00027945,7]
[345337893,1734160249386,-552.13,0.00027945,7]
[345337894,1734160249395,-500.0,0.00027945,7]
[345337895,1734160249405,-500.0,0.00027945,7]
[345337896,1734160249415,-603.19,0.00027945,7]
[345337897,1734160249424,-1301.52,0.00027945,7]
[345337898,1734160249434,-1000.0,0.00027945,2]
[345337899,1734160249443,-500.0,0.00027945,7]
[345337900,1734160249453,-749.59,0.00027945,7]
[345337901,1734160249462,-500.0,0.00027945,7]
[345337902,1734160249471,-250.37947683,0.00027945,7]
[345337903,1734160249481,-500.0,0.00027945,7]
[345337904,1734160249490,-861.2,0.00027945,7]
[345337905,1734160249499,-500.0,0.00027945,7]
[345337906,1734160249508,-500.0,0.00027945,7]
[345337907,1734160249517,-500.0,0.00027945,7]
[345337908,1734160249527,-965.22,0.00027945,7]
[345337909,1734160249536,-500.0,0.00027945,7]
[345337910,1734160249545,-500.0,0.00027945,7]
[345337911,1734160249554,-500.0,0.00027945,7]
[345337912,1734160249564,-500.0,0.00027945,7]
[345337913,1734160249574,-500.0,0.00027945,7]
[345337914,1734160249583,-500.0,0.00027945,7]
[345337915,1734160249593,-500.0,0.00027945,7]
[345337916,1734160249602,-500.0,0.00027945,7]
[345337917,1734160249612,-1126.57,0.00027945,7]
[345337918,1734160249621,-500.0,0.00027945,7]
[345337919,1734160249630,-946.51,0.00027945,7]
[345337920,1734160249640,-500.0,0.00027945,2]
[345337921,1734160249649,-500.0,0.00027945,7]
[345337922,1734160249659,-500.0,0.00027945,7]
[345337923,1734160249669,-500.0,0.00027945,7]
[345337924,1734160249679,-500.0,0.00027945,7]
[345337925,1734160249688,-500.0,0.00027945,7]
[345337926,1734160249699,-500.0,0.00027945,7]
[345337927,1734160249710,-500.0,0.00027945,7]
[345337928,1734160249719,-500.0,0.00027945,7]
[345337929,1734160249729,-500.0,0.00027945,7]
[345337930,1734160249739,-500.0,0.00027945,7]
[345337931,1734160249749,-500.0,0.00027945,7]
[345337932,1734160249759,-500.0,0.00027945,7]
[345337933,1734160249768,-500.0,0.00027945,2]
[345337934,1734160249778,-500.0,0.00027945,7]
[345337935,1734160249787,-520.51,0.00027945,7]
[345337936,1734160249797,-674.85,0.00027945,7]
[345337937,1734160249807,-500.0,0.00027945,7]
[345337938,1734160249816,-500.0,0.00027945,7]
[345337939,1734160249825,-500.0,0.00027945,7]
[345337940,1734160249834,-500.0,0.00027945,7]
[345337941,1734160249844,-500.0,0.00027945,7]
[345337942,1734160249854,-2574.58,0.00027945,7]
[345337943,1734160249863,-1343.49,0.00027945,7]
[345337944,1734160249873,-500.0,0.00027945,7]
[345337945,1734160249883,-1564.63,0.00027945,7]
[345337946,1734160249893,-484.01939897,0.00027945,7]
[345337947,1734160249903,-504.3868026,0.00027945,7]
[345337948,1734160249912,-684.01,0.00027945,7]
[345337949,1734160249921,-2192.9,0.00027945,7]
[345337950,1734160249931,-500.0,0.00027945,7]
[345337951,1734160249940,-500.0,0.00027945,7]
[345337952,1734160249951,-500.0,0.00027945,7]
[345337953,1734160249961,-1111.72,0.00027945,7]
[345337954,1734160249970,-500.0,0.00027945,7]
[345337955,1734160249979,-500.0,0.00027945,7]
[345337956,1734160249989,-500.0,0.00027945,7]
[345337957,1734160249999,-500.0,0.00027945,7]
[345337958,1734160250008,-629.24,0.00027945,7]
[345337959,1734160250018,-500.0,0.00027945,7]
[345337960,1734160250027,-565.5,0.00027945,7]
[345337961,1734160250036,-1386.54,0.00027945,7]
[345337962,1734160250046,-506.09,0.00027945,7]
[345337963,1734160250055,-1124.97,0.00027945,7]
[345337964,1734160250065,-500.0,0.00027945,7]
[345337965,1734160250075,-500.0,0.00027945,7]
[345337966,1734160250084,-500.0,0.00027945,7]
[345337967,1734160250095,-514.36263139,0.00027945,7]
[345337968,1734160250105,-306.05263999,0.00027945,7]
[345337969,1734160250121,-500.0,0.00027945,7]
[345337970,1734160250131,-912.18,0.00027945,7]
[345337971,1734160250140,-500.0,0.00027945,7]
[345337972,1734160250157,-665.69,0.00027945,7]
[345337973,1734160250167,-500.0,0.00027945,7]
[345337974,1734160250176,-500.0,0.00027945,7]
[345337975,1734160250186,-500.0,0.00027945,7]
[345337976,1734160250197,-500.0,0.00027945,7]
[345337977,1734160250206,-4949.7,0.00027945,7]
[345337978,1734160250215,-1256.84,0.00027945,7]
[345337979,1734160250225,-500.0,0.00027945,7]
[345337980,1734160250234,-500.0,0.00027945,7]
[345337981,1734160250243,-268.11793911,0.00027945,7]
[345337982,1734160250252,-995.39,0.00027945,7]
[345337983,1734160250261,-805.1,0.00027945,7]
[345337984,1734160250271,-500.0,0.00027945,7]
[345337985,1734160250280,-871.29,0.00027945,7]
[345337986,1734160250290,-1280.7,0.00027945,7]
[345337987,1734160250299,-500.0,0.00027945,7]
[345337988,1734160250309,-13675.67,0.00027945,7]
[345337989,1734160250318,-500.0,0.00027945,7]
[345337990,1734160250326,-1277.33,0.00027945,7]
[345337991,1734160250410,-500.0,0.00027945,7]
[345337992,1734160250420,-1956.62,0.00027945,7]
[345337993,1734160250430,-2298.6,0.00027945,7]
[345337994,1734160250439,-741.9,0.00027945,7]
[345337995,1734160250449,-500.0,0.00027945,7]
[345337996,1734160250459,-500.0,0.00027945,7]
[345337997,1734160250468,-500.0,0.00027945,7]
[345337998,1734160250477,-10312.08,0.00027945,7]
[345337999,1734160250486,-1076.48,0.00027945,7]
[345338000,1734160250495,-500.0,0.00027945,7]
[345338001,1734160250504,-687.28,0.00027945,7]
[345338002,1734160250513,-5762.06,0.00027945,5]
[345338003,1734160250523,-401.80071283,0.00027945,7]
[345338004,1734160250531,-909.93,0.00027945,7]
[345338005,1734160250540,-500.0,0.00027945,7]
[345338006,1734160250550,-695.42,0.00027945,7]
[345338007,1734160250560,-595.78,0.00027945,7]
[345338008,1734160250569,-962.18,0.00027945,7]
[345338009,1734160250579,-2634.79139655,0.00028,7]
[345338010,1734160250588,-12840.73,0.00028,2]
[345338011,1734160250597,-500.0,0.00028,2]
[345338012,1734160250607,-500.0,0.00028,2]
[345338013,1734160250615,-300.99,0.00028,30]
[345338014,1734160250625,-2441.24,0.00028,30]
[345338015,1734160250634,-151.0,0.00028,6]
[345338016,1734160250644,-360.88,0.00028,31]
[345338017,1734160250654,-360.88,0.00028,31]
[345338018,1734160250664,-360.88,0.00028,31]
[345338019,1734160250674,-360.88,0.00028,31]
[345338020,1734160250684,-360.88,0.00028,31]
[345338021,1734160250693,-360.88,0.00028,31]
[345338022,1734160250703,-360.88,0.00028,31]
[345338023,1734160250712,-360.88,0.00028,31]
[345338024,1734160250722,-360.88,0.00028,31]
[345338025,1734160250731,-360.88,0.00028,31]
[345338026,1734160250740,-360.88,0.00028,31]
[345338027,1734160250750,-360.88,0.00028,31]
[345338028,1734160250760,-360.88,0.00028,31]
[345338029,1734160250769,-360.88,0.00028,31]
[345338030,1734160250778,-360.88,0.00028,31]
[345338031,1734160250787,-360.88,0.00028,31]
[345338032,1734160250796,-360.88,0.00028,31]
[345338033,1734160250805,-360.88,0.00028,31]
[345338034,1734160250814,-360.88,0.00028,31]
[345338035,1734160250823,-360.88,0.00028,31]
[345338036,1734160250833,-360.88,0.00028,31]
[345338037,1734160250842,-360.88,0.00028,31]
[345338038,1734160250851,-360.88,0.00028,31]
[345338039,1734160250861,-360.88,0.00028,31]
[345338040,1734160250870,-151.0,0.00028,7]
[345338041,1734160250879,-151.0,0.00028,7]
[345338042,1734160250888,-151.0,0.00028,7]
[345338043,1734160250898,-556267.0,0.00028,2]
[345338044,1734160250909,-151.0,0.00028,7]
[345338045,1734160250919,-151.0,0.00028,7]
[345338046,1734160250928,-500.0,0.00028,2]
[345338047,1734160250938,-5000.0,0.00028,7]
[345338048,1734160250948,-5000.0,0.00028,2]
[345338049,1734160250958,-5000.0,0.00028,2]
[345338050,1734160250969,-824.18462808,0.00028073,2]
[345338051,1734160250978,-362.23740868,0.00028122,5]
[345338052,1734160250990,-423.90188487,0.00028219,7]
[345338053,1734160250999,-500.0,0.00028219,7]
[345338054,1734160251009,-500.0,0.00028219,7]
[345338055,1734160251018,-500.0,0.00028219,7]
[345338056,1734160251029,-164.6687721,0.00028219,7]
[345338057,1734160251039,-500.0,0.00028219,7]
[345338058,1734160251049,-500.0,0.00028219,2]
[345338059,1734160251058,-500.0,0.00028219,7]
[345338060,1734160251067,-500.0,0.00028219,7]
[345338061,1734160251076,-500.0,0.00028219,7]
[345338062,1734160251086,-500.0,0.00028219,7]
[345338063,1734160251096,-500.0,0.00028219,7]
[345338064,1734160251105,-500.0,0.00028219,7]
[345338065,1734160251115,-500.0,0.00028219,7]
[345338066,1734160251124,-633.9825896,0.00028219,7]
[345338067,1734160251135,-500.0,0.00028219,7]
[345338068,1734160251147,-500.0,0.00028219,7]